[Event "*** Titled Tuesday Blitz"]
[Site "Chess.com"]
[Date "2020.12.01"]
[Round "5"]
[White "woodhy"]
[Black "Keures"]
[Result "0-1"]
[WhiteElo "2450"]
[BlackElo "2254"]
[TimeControl "180+1"]
[EndTime "10:56:31 PST"]
[Termination "Keures won by resignation"]

1. e4 {[%clk 0:02:58.5]} 1... e6 {[%clk 0:03:00]} 2. d4 {[%clk 0:02:57.8]} 2...
d5 {[%clk 0:03:00.2]} 3. e5 {[%clk 0:02:57.1]} 3... c5 {[%clk 0:02:59.8]} 4. c3
{[%clk 0:02:57.5]} 4... Qb6 {[%clk 0:03:00]} 5. Nf3 {[%clk 0:02:51]} 5... Bd7
{[%clk 0:03:00.1]} 6. a4 {[%clk 0:02:50.9]} 6... c4 {[%clk 0:02:59.2]} 7. g3
{[%clk 0:02:49.4]} 7... Nc6 {[%clk 0:02:59.3]} 8. Bg2 {[%clk 0:02:49.6]} 8...
Na5 {[%clk 0:02:53.6]} 9. Nbd2 {[%clk 0:02:43.3]} 9... Ne7 {[%clk 0:02:50.2]}
10. O-O {[%clk 0:02:41.3]} 10... Nc8 {[%clk 0:02:50]} 11. Rb1 {[%clk 0:02:36.2]}
11... Qc7 {[%clk 0:02:46.6]} 12. Qc2 {[%clk 0:02:29.2]} 12... Nb6 {[%clk
0:02:44.6]} 13. Ra1 {[%clk 0:02:19.5]} 13... Be7 {[%clk 0:02:31.5]} 14. Ne1
{[%clk 0:02:14.7]} 14... Bc6 {[%clk 0:02:24.7]} 15. f4 {[%clk 0:02:14.5]} 15...
g6 {[%clk 0:02:24.7]} 16. Kh1 {[%clk 0:02:09]} 16... Qd7 {[%clk 0:02:23.3]} 17.
Bh3 {[%clk 0:01:56.1]} 17... Bxa4 {[%clk 0:02:15.9]} 18. Qb1 {[%clk 0:01:54.2]}
18... Nb3 {[%clk 0:02:02.1]} 19. Ra2 {[%clk 0:01:51.8]} 19... h5 {[%clk
0:01:53.3]} 20. Ng2 {[%clk 0:01:36.9]} 20... Bb5 {[%clk 0:01:41.7]} 21. Ne3
{[%clk 0:01:33.1]} 21... a6 {[%clk 0:01:38.9]} 22. Qc2 {[%clk 0:01:30.1]} 22...
Nxd2 {[%clk 0:01:37.4]} 23. Bxd2 {[%clk 0:01:27.5]} 23... Ba4 {[%clk 0:01:35.7]}
24. Qb1 {[%clk 0:01:23.7]} 24... Bb3 {[%clk 0:01:30.3]} 25. Ra1 {[%clk
0:01:19.6]} 25... O-O-O {[%clk 0:01:26.5]} 26. Bg2 {[%clk 0:01:14.9]} 26... Kb8
{[%clk 0:01:11]} 27. Nd1 {[%clk 0:01:08.6]} 27... Ka7 {[%clk 0:01:09.9]} 28. Nf2
{[%clk 0:01:07.3]} 28... Rdg8 {[%clk 0:01:06.5]} 29. h4 {[%clk 0:01:07.1]} 29...
Qb5 {[%clk 0:01:04.3]} 30. Nh3 {[%clk 0:01:05.5]} 30... Rg7 {[%clk 0:01:01.4]}
31. Ng5 {[%clk 0:01:04.7]} 31... Rhg8 {[%clk 0:00:59.2]} 32. Rf2 {[%clk
0:01:00.6]} 32... Rf8 {[%clk 0:00:57.9]} 33. Bf3 {[%clk 0:00:57]} 33... Qc6
{[%clk 0:00:57]} 34. Re2 {[%clk 0:00:56.5]} 34... Rfg8 {[%clk 0:00:56]} 35. Kg2
{[%clk 0:00:50.4]} 35... Rf8 {[%clk 0:00:56.1]} 36. Qe1 {[%clk 0:00:49]} 36...
Rfg8 {[%clk 0:00:51.5]} 37. Qf2 {[%clk 0:00:48.7]} 37... Rf8 {[%clk 0:00:51.3]}
38. Qe3 {[%clk 0:00:48.6]} 38... Rfg8 {[%clk 0:00:51.1]} 39. Ree1 {[%clk
0:00:48.3]} 39... Rf8 {[%clk 0:00:51.1]} 40. Reb1 {[%clk 0:00:47.2]} 40... Rfg8
{[%clk 0:00:51.2]} 41. Rh1 {[%clk 0:00:47]} 41... Rf8 {[%clk 0:00:51.3]} 42. Be1
{[%clk 0:00:47]} 42... Rfg8 {[%clk 0:00:51.4]} 43. Bf2 {[%clk 0:00:47.5]} 43...
Rf8 {[%clk 0:00:51.6]} 44. Qd2 {[%clk 0:00:47.9]} 44... Rfg8 {[%clk 0:00:51.5]}
45. Rh2 {[%clk 0:00:48.4]} 45... Rf8 {[%clk 0:00:51.6]} 46. Rah1 {[%clk
0:00:48.5]} 46... Rfg8 {[%clk 0:00:51.7]} 47. g4 {[%clk 0:00:48.9]} 47... hxg4
{[%clk 0:00:51.4]} 48. Bxg4 {[%clk 0:00:49.8]} 48... Rh8 {[%clk 0:00:51.1]} 49.
h5 {[%clk 0:00:50]} 49... gxh5 {[%clk 0:00:50.4]} 50. Rxh5 {[%clk 0:00:50.9]}
50... Rxh5 {[%clk 0:00:50]} 51. Rxh5 {[%clk 0:00:51.8]} 51... Qe8 {[%clk
0:00:47.6]} 52. Kf1 {[%clk 0:00:44.7]} 52... Qg8 {[%clk 0:00:47.1]} 53. Qe3
{[%clk 0:00:43.6]} 53... Bc2 {[%clk 0:00:46.6]} 54. Bh4 {[%clk 0:00:40.5]} 54...
Bd3+ {[%clk 0:00:46.5]} 55. Ke1 {[%clk 0:00:39.8]} 55... Bg6 {[%clk 0:00:46.8]}
56. Rh6 {[%clk 0:00:39.5]} 56... Na4 {[%clk 0:00:42.9]} 57. Qf2 {[%clk
0:00:34.1]} 57... Nb6 {[%clk 0:00:38.5]} 58. Kd2 {[%clk 0:00:33.1]} 58... Nd7
{[%clk 0:00:37.2]} 59. Kc1 {[%clk 0:00:32.3]} 59... Nf8 {[%clk 0:00:37.2]} 60.
Nf3 {[%clk 0:00:29.3]} 60... Bxh4 {[%clk 0:00:36.7]} 61. Qxh4 {[%clk 0:00:30.2]}
61... Rh7 {[%clk 0:00:32.3]} 62. Ng5 {[%clk 0:00:29]} 62... Rxh6 {[%clk
0:00:32]} 63. Qxh6 {[%clk 0:00:29.9]} 63... Nh7 {[%clk 0:00:28.2]} 64. Nxh7
{[%clk 0:00:14]} 64... Qxh7 {[%clk 0:00:29.1]} 65. Qxh7 {[%clk 0:00:10.8]} 65...
Bxh7 {[%clk 0:00:28]} 66. Bh5 {[%clk 0:00:08.3]} 66... Bg6 {[%clk 0:00:26.6]}
67. Bd1 {[%clk 0:00:08.1]} 67... b5 {[%clk 0:00:26.2]} 68. Kd2 {[%clk
0:00:06.4]} 68... a5 {[%clk 0:00:26.6]} 69. Kc1 {[%clk 0:00:05.4]} 69... b4
{[%clk 0:00:26.9]} 70. Kd2 {[%clk 0:00:05.4]} 70... Kb6 {[%clk 0:00:26.9]} 71.
Ba4 {[%clk 0:00:05.4]} 71... Kc7 {[%clk 0:00:26.4]} 72. Be8 {[%clk 0:00:04.9]}
72... Kd8 {[%clk 0:00:26.5]} 73. Ba4 {[%clk 0:00:05]} 73... Ke7 {[%clk
0:00:26.8]} 74. Bb5 {[%clk 0:00:05.3]} 74... Kf8 {[%clk 0:00:26.9]} 75. Ke3
{[%clk 0:00:05.1]} 75... Kg7 {[%clk 0:00:27]} 76. Kf3 {[%clk 0:00:05.5]} 76...
Kh6 {[%clk 0:00:27.2]} 77. Kg4 {[%clk 0:00:05.7]} 77... Bf5+ {[%clk 0:00:27.8]}
78. Kh4 {[%clk 0:00:06]} 78... Bc2 {[%clk 0:00:26.4]} 79. Kg3 {[%clk 0:00:04.5]}
79... bxc3 {[%clk 0:00:25.1]} 80. bxc3 {[%clk 0:00:04.8]} 80... a4 {[%clk
0:00:25.6]} 81. Be8 {[%clk 0:00:04.3]} 81... Kg7 {[%clk 0:00:24.4]} 82. f5
{[%clk 0:00:04.3]} 82... a3 {[%clk 0:00:23.4]} 83. fxe6 {[%clk 0:00:02.8]} 83...
fxe6 {[%clk 0:00:24.3]} 84. Ba4 {[%clk 0:00:02.8]} 84... Bxa4 {[%clk 0:00:23.3]}
0-1

[Event "*** Titled Tuesday Blitz"]
[Site "Chess.com"]
[Date "2020.12.01"]
[Round "5"]
[White "exoticprincess"]
[Black "LiamVrolijk"]
[Result "1-0"]
[WhiteElo "2912"]
[BlackElo "2825"]
[TimeControl "180+1"]
[EndTime "10:56:40 PST"]
[Termination "exoticprincess won by resignation"]

1. c4 {[%clk 0:03:00.9]} 1... Nf6 {[%clk 0:02:58.3]} 2. Nc3 {[%clk 0:03:00.5]}
2... e5 {[%clk 0:02:58.5]} 3. g3 {[%clk 0:02:59.4]} 3... Bb4 {[%clk 0:02:56.2]}
4. Bg2 {[%clk 0:02:58.3]} 4... O-O {[%clk 0:02:55.1]} 5. e3 {[%clk 0:02:56.7]}
5... c6 {[%clk 0:02:48.8]} 6. Nge2 {[%clk 0:02:56.2]} 6... d5 {[%clk 0:02:49]}
7. cxd5 {[%clk 0:02:52]} 7... cxd5 {[%clk 0:02:49.9]} 8. d4 {[%clk 0:02:50.1]}
8... e4 {[%clk 0:02:46.7]} 9. O-O {[%clk 0:02:50]} 9... Nc6 {[%clk 0:02:47]} 10.
Bd2 {[%clk 0:02:48.7]} 10... Re8 {[%clk 0:02:43.7]} 11. Rc1 {[%clk 0:02:46.9]}
11... Bf5 {[%clk 0:02:24.4]} 12. h3 {[%clk 0:02:32.1]} 12... Qd7 {[%clk
0:02:18.3]} 13. Kh2 {[%clk 0:02:31.7]} 13... Rad8 {[%clk 0:02:17.2]} 14. Na4
{[%clk 0:02:28.2]} 14... Bxd2 {[%clk 0:02:02.4]} 15. Qxd2 {[%clk 0:02:29.1]}
15... h5 {[%clk 0:02:00]} 16. Nc5 {[%clk 0:02:28.1]} 16... Qe7 {[%clk
0:01:55.9]} 17. b4 {[%clk 0:02:07.5]} 17... Rc8 {[%clk 0:01:40.3]} 18. b5 {[%clk
0:02:06.8]} 18... Nd8 {[%clk 0:01:37.8]} 19. Qb4 {[%clk 0:01:58.2]} 19... Ne6
{[%clk 0:01:35]} 20. a3 {[%clk 0:01:15]} 20... h4 {[%clk 0:01:23.1]} 21. gxh4
{[%clk 0:01:12.5]} 21... Nh5 {[%clk 0:01:04.6]} 22. Ng3 {[%clk 0:01:07.7]} 22...
Bg6 {[%clk 0:01:00]} 23. Nxe6 {[%clk 0:01:06.6]} 23... Qxe6 {[%clk 0:01:00]} 24.
Rc5 {[%clk 0:00:59.3]} 24... b6 {[%clk 0:00:59.8]} 25. Rxc8 {[%clk 0:00:54.6]}
25... Rxc8 {[%clk 0:01:00.7]} 26. Qa4 {[%clk 0:00:43.8]} 26... Rc7 {[%clk
0:01:01]} 27. Qd1 {[%clk 0:00:43.2]} 27... Qd6 {[%clk 0:00:56.5]} 28. Qg4 {[%clk
0:00:37.6]} 28... Nf6 {[%clk 0:00:52.2]} 29. Qg5 {[%clk 0:00:36.3]} 29... Rc2
{[%clk 0:00:41.6]} 30. Kg1 {[%clk 0:00:35.6]} 30... Nh7 {[%clk 0:00:40.6]} 31.
Qg4 {[%clk 0:00:33]} 31... Nf6 {[%clk 0:00:38.8]} 32. Qg5 {[%clk 0:00:33.3]}
32... Nh7 {[%clk 0:00:39]} 33. Qe5 {[%clk 0:00:33.8]} 33... Qxe5 {[%clk
0:00:34]} 34. dxe5 {[%clk 0:00:34.7]} 34... Nf8 {[%clk 0:00:34.9]} 35. h5 {[%clk
0:00:34.1]} 35... Bh7 {[%clk 0:00:35.4]} 36. Rd1 {[%clk 0:00:34.7]} 36... Rc5
{[%clk 0:00:36]} 37. a4 {[%clk 0:00:29.8]} 37... Nd7 {[%clk 0:00:36.4]} 38. Bxe4
{[%clk 0:00:27.6]} 38... Nxe5 {[%clk 0:00:22.3]} 39. Rxd5 {[%clk 0:00:27.2]}
39... Rxd5 {[%clk 0:00:22.8]} 40. Bxd5 {[%clk 0:00:26.6]} 40... Bc2 {[%clk
0:00:23.7]} 41. Ne4 {[%clk 0:00:25.2]} 41... Bxa4 {[%clk 0:00:19.8]} 42. Nc3
{[%clk 0:00:24.8]} 42... Bc2 {[%clk 0:00:17.7]} 43. f4 {[%clk 0:00:24.9]} 43...
Nd7 {[%clk 0:00:17.5]} 44. Kf2 {[%clk 0:00:22.6]} 44... Bf5 {[%clk 0:00:16]} 45.
h4 {[%clk 0:00:22.3]} 45... Nf6 {[%clk 0:00:16.4]} 46. Bf3 {[%clk 0:00:22.2]}
46... Kf8 {[%clk 0:00:09.2]} 47. e4 {[%clk 0:00:22.5]} 47... Bd7 {[%clk
0:00:10]} 48. e5 {[%clk 0:00:22.8]} 48... Ng4+ {[%clk 0:00:10.7]} 49. Ke2 {[%clk
0:00:19.8]} 49... Nh6 {[%clk 0:00:11.4]} 50. Bc6 {[%clk 0:00:19]} 50... Be6
{[%clk 0:00:11.3]} 51. Kd3 {[%clk 0:00:17.9]} 51... Nf5 {[%clk 0:00:11.6]} 52.
Ne4 {[%clk 0:00:17.6]} 52... Nxh4 {[%clk 0:00:11.6]} 53. Nd6 {[%clk 0:00:17.5]}
53... Bg4 {[%clk 0:00:08.7]} 54. Ke4 {[%clk 0:00:15.6]} 54... Bxh5 {[%clk
0:00:05.7]} 55. Nc8 {[%clk 0:00:15.2]} 55... Bf3+ {[%clk 0:00:06.5]} 56. Kd3
{[%clk 0:00:13.2]} 56... Bg4 {[%clk 0:00:03.7]} 57. Nxa7 {[%clk 0:00:13.1]}
57... Ke7 {[%clk 0:00:04.4]} 58. Be4 {[%clk 0:00:11.9]} 58... f6 {[%clk
0:00:04.8]} 59. Nc6+ {[%clk 0:00:12.1]} 59... Ke6 {[%clk 0:00:03.9]} 60. Nd4+
{[%clk 0:00:13]} 60... Ke7 {[%clk 0:00:03.9]} 61. Kc4 {[%clk 0:00:11.8]} 61...
fxe5 {[%clk 0:00:03.8]} 62. fxe5 {[%clk 0:00:12.7]} 62... g6 {[%clk 0:00:03.1]}
63. Kd5 {[%clk 0:00:12.8]} 63... Bd7 {[%clk 0:00:03.4]} 64. Nc6+ {[%clk
0:00:12]} 64... Kf7 {[%clk 0:00:02.5]} 65. Kd6 {[%clk 0:00:11.2]} 65... Bf5
{[%clk 0:00:03.1]} 66. e6+ {[%clk 0:00:10.7]} 66... Kf6 {[%clk 0:00:03.5]} 67.
e7 {[%clk 0:00:11]} 67... Bxe4 {[%clk 0:00:04]} 68. e8=Q {[%clk 0:00:10.5]}
68... Nf5+ {[%clk 0:00:04.8]} 69. Kc7 {[%clk 0:00:10.5]} 69... Bd5 {[%clk
0:00:04.1]} 70. Kxb6 {[%clk 0:00:08.9]} 70... Be6 {[%clk 0:00:03.1]} 71. Qd8+
{[%clk 0:00:09]} 71... Kf7 {[%clk 0:00:03.4]} 72. Ne5+ {[%clk 0:00:09.1]} 72...
Kg7 {[%clk 0:00:03.6]} 73. Qg5 {[%clk 0:00:08.5]} 73... Ne7 {[%clk 0:00:03.8]}
74. Qxe7+ {[%clk 0:00:07.8]} 1-0

[Event "*** Titled Tuesday Blitz"]
[Site "Chess.com"]
[Date "2020.12.01"]
[Round "5"]
[White "Bigfish1995"]
[Black "Man-Chuk"]
[Result "1-0"]
[WhiteElo "3068"]
[BlackElo "2865"]
[TimeControl "180+1"]
[EndTime "10:56:45 PST"]
[Termination "Bigfish1995 won by resignation"]

1. b3 {[%clk 0:03:00.9]} 1... d5 {[%clk 0:02:58.5]} 2. Bb2 {[%clk 0:03:01]} 2...
Bf5 {[%clk 0:02:53]} 3. e3 {[%clk 0:02:59.3]} 3... e6 {[%clk 0:02:50.7]} 4. Ne2
{[%clk 0:02:44.6]} 4... Nf6 {[%clk 0:02:47]} 5. f3 {[%clk 0:02:44.2]} 5... h6
{[%clk 0:02:40.3]} 6. c4 {[%clk 0:02:28.9]} 6... c5 {[%clk 0:02:35]} 7. Ng3
{[%clk 0:02:26.5]} 7... Bh7 {[%clk 0:02:30.7]} 8. cxd5 {[%clk 0:02:26.5]} 8...
exd5 {[%clk 0:02:27.8]} 9. Bb5+ {[%clk 0:02:19.8]} 9... Nc6 {[%clk 0:02:28]} 10.
O-O {[%clk 0:02:19]} 10... Be7 {[%clk 0:02:19.6]} 11. Bxc6+ {[%clk 0:02:16]}
11... bxc6 {[%clk 0:02:19.6]} 12. d3 {[%clk 0:02:16.6]} 12... O-O {[%clk
0:02:08.3]} 13. e4 {[%clk 0:02:15.1]} 13... c4 {[%clk 0:02:03.4]} 14. bxc4
{[%clk 0:02:07.7]} 14... Qb6+ {[%clk 0:01:52]} 15. Rf2 {[%clk 0:02:07.6]} 15...
dxe4 {[%clk 0:01:40.9]} 16. fxe4 {[%clk 0:01:51.7]} 16... Bc5 {[%clk 0:01:40.8]}
17. d4 {[%clk 0:01:48.2]} 17... Rad8 {[%clk 0:01:39.2]} 18. Rd2 {[%clk
0:01:45.1]} 18... Qxb2 {[%clk 0:01:33.8]} 19. Rxb2 {[%clk 0:01:40.2]} 19... Rxd4
{[%clk 0:00:50.7]} 20. Qf1 {[%clk 0:01:30.3]} 20... Rd1+ {[%clk 0:00:45.6]} 21.
Rf2 {[%clk 0:01:30.6]} 21... Rxf1+ {[%clk 0:00:39.3]} 22. Kxf1 {[%clk
0:01:31.5]} 22... Bd4 {[%clk 0:00:34.8]} 23. Nc3 {[%clk 0:01:31.4]} 23... Bxc3
{[%clk 0:00:35.3]} 24. Rc1 {[%clk 0:01:32]} 24... Bd4 {[%clk 0:00:35]} 25. Re2
{[%clk 0:01:32]} 25... Ng4 {[%clk 0:00:32.9]} 26. h3 {[%clk 0:01:20.2]} 26...
Ne5 {[%clk 0:00:27.6]} 27. c5 {[%clk 0:01:12.5]} 27... Bg6 {[%clk 0:00:25.8]}
28. Nf5 {[%clk 0:01:03.7]} 28... Bxf5 {[%clk 0:00:23.6]} 29. exf5 {[%clk
0:01:04.6]} 29... f6 {[%clk 0:00:22.1]} 30. Re4 {[%clk 0:00:59.9]} 30... Bb2
{[%clk 0:00:20.5]} 31. Rc2 {[%clk 0:00:59.2]} 31... Rb8 {[%clk 0:00:19]} 32. Ra4
{[%clk 0:00:58.9]} 32... Rb7 {[%clk 0:00:17.7]} 33. Ke2 {[%clk 0:00:57.2]} 33...
Nd7 {[%clk 0:00:16.5]} 34. a3 {[%clk 0:00:53.6]} 34... Be5 {[%clk 0:00:16]} 35.
Rb4 {[%clk 0:00:52.5]} 35... Rc7 {[%clk 0:00:10.7]} 36. Kd3 {[%clk 0:00:52.6]}
36... Kf7 {[%clk 0:00:11.3]} 37. g4 {[%clk 0:00:47.9]} 37... a5 {[%clk 0:00:08]}
38. Rb1 {[%clk 0:00:47.2]} 38... Ra7 {[%clk 0:00:06.8]} 39. a4 {[%clk
0:00:45.1]} 39... Bc7 {[%clk 0:00:05.4]} 40. Kd4 {[%clk 0:00:43.9]} 40... Ke7
{[%clk 0:00:05.2]} 41. Re2+ {[%clk 0:00:41.3]} 41... Ne5 {[%clk 0:00:05.4]} 42.
Reb2 {[%clk 0:00:40.4]} 42... Kd7 {[%clk 0:00:06]} 43. Rb3 {[%clk 0:00:38.8]}
43... Ra8 {[%clk 0:00:06.3]} 44. Rb7 {[%clk 0:00:37.2]} 44... Rd8 {[%clk
0:00:06.6]} 45. Ke4 {[%clk 0:00:34.3]} 45... Kc8 {[%clk 0:00:06.1]} 46. Ra7
{[%clk 0:00:34.5]} 46... Rd5 {[%clk 0:00:02.7]} 47. Ra8+ {[%clk 0:00:34.1]}
47... Kd7 {[%clk 0:00:02.9]} 48. Rb7 {[%clk 0:00:34.7]} 48... Nd3 {[%clk
0:00:02.4]} 49. Rba7 {[%clk 0:00:28.1]} 49... Nxc5+ {[%clk 0:00:03.3]} 50. Ke3
{[%clk 0:00:27.9]} 50... Kd6 {[%clk 0:00:03.1]} 51. Rg8 {[%clk 0:00:27.3]} 51...
Bb6 {[%clk 0:00:03.6]} 52. Raa8 {[%clk 0:00:24.7]} 52... Nd7+ {[%clk 0:00:03.8]}
53. Ke2 {[%clk 0:00:24]} 53... Re5+ {[%clk 0:00:03.1]} 54. Kf1 {[%clk
0:00:21.4]} 54... Re7 {[%clk 0:00:03.2]} 55. Rae8 {[%clk 0:00:18]} 55... Rxe8
{[%clk 0:00:03.2]} 56. Rxe8 {[%clk 0:00:16.7]} 56... Nc5 {[%clk 0:00:03.7]} 57.
Rg8 {[%clk 0:00:16.9]} 57... Nxa4 {[%clk 0:00:04.1]} 58. Rxg7 {[%clk 0:00:17.1]}
58... Be3 {[%clk 0:00:04.8]} 59. h4 {[%clk 0:00:16]} 59... Nc3 {[%clk
0:00:03.4]} 60. Kg2 {[%clk 0:00:13.3]} 60... a4 {[%clk 0:00:03.5]} 61. Kf3
{[%clk 0:00:13.9]} 61... Bd4 {[%clk 0:00:02.7]} 62. Rg8 {[%clk 0:00:08.2]} 62...
a3 {[%clk 0:00:03.2]} 63. Ra8 {[%clk 0:00:08.2]} 63... Kc5 {[%clk 0:00:03.9]}
64. Rxa3 {[%clk 0:00:07.7]} 64... Nd5 {[%clk 0:00:03.8]} 65. Ra8 {[%clk
0:00:07.2]} 65... Kd6 {[%clk 0:00:04.2]} 66. Rh8 {[%clk 0:00:07.5]} 66... c5
{[%clk 0:00:04.5]} 67. Rxh6 {[%clk 0:00:07.3]} 67... c4 {[%clk 0:00:05]} 68. Ke4
{[%clk 0:00:06.8]} 68... Be5 {[%clk 0:00:04.7]} 69. g5 {[%clk 0:00:06.7]} 69...
c3 {[%clk 0:00:04.4]} 70. gxf6 {[%clk 0:00:05.5]} 70... Nxf6+ {[%clk 0:00:03]}
71. Kd3 {[%clk 0:00:05.5]} 71... Kd5 {[%clk 0:00:03.7]} 72. Rh8 {[%clk
0:00:05.5]} 72... Ng4 {[%clk 0:00:03.1]} 73. Rd8+ {[%clk 0:00:05.6]} 73... Kc5
{[%clk 0:00:03.3]} 74. h5 {[%clk 0:00:05.1]} 74... Nf2+ {[%clk 0:00:02.7]} 75.
Kc2 {[%clk 0:00:05.2]} 75... Ng4 {[%clk 0:00:03.5]} 76. Rg8 {[%clk 0:00:04.4]}
76... Kc4 {[%clk 0:00:03.8]} 77. Rxg4+ {[%clk 0:00:04]} 77... Kd5 {[%clk
0:00:04.7]} 78. h6 {[%clk 0:00:04.9]} 1-0

[Event "*** Titled Tuesday Blitz"]
[Site "Chess.com"]
[Date "2020.12.01"]
[Round "5"]
[White "Andreikka"]
[Black "Rud_Makarian"]
[Result "0-1"]
[WhiteElo "2869"]
[BlackElo "2729"]
[TimeControl "180+1"]
[EndTime "10:56:45 PST"]
[Termination "Rud_Makarian won on time"]

1. d4 {[%clk 0:03:00.9]} 1... Nf6 {[%clk 0:02:59.6]} 2. Bg5 {[%clk 0:02:59.3]}
2... Ne4 {[%clk 0:02:58.9]} 3. Bh4 {[%clk 0:02:58.1]} 3... g5 {[%clk 0:02:56.6]}
4. Bg3 {[%clk 0:02:55.8]} 4... Nxg3 {[%clk 0:02:48.5]} 5. hxg3 {[%clk
0:02:55.4]} 5... Bg7 {[%clk 0:02:49.4]} 6. e4 {[%clk 0:02:54.2]} 6... c5 {[%clk
0:02:48.4]} 7. Nf3 {[%clk 0:02:26.8]} 7... cxd4 {[%clk 0:02:46]} 8. Nbd2 {[%clk
0:02:21.7]} 8... h6 {[%clk 0:02:43.4]} 9. Bd3 {[%clk 0:02:18.4]} 9... Nc6 {[%clk
0:02:43.2]} 10. a3 {[%clk 0:02:17.9]} 10... d6 {[%clk 0:02:39.6]} 11. Qe2 {[%clk
0:02:16.8]} 11... a6 {[%clk 0:02:37.7]} 12. Bc4 {[%clk 0:02:13.7]} 12... e6
{[%clk 0:02:31]} 13. Bb3 {[%clk 0:02:08.8]} 13... Qe7 {[%clk 0:02:20.1]} 14. Nc4
{[%clk 0:02:07.2]} 14... b5 {[%clk 0:02:11]} 15. Nb6 {[%clk 0:02:06.6]} 15...
Rb8 {[%clk 0:02:11.1]} 16. Nxc8 {[%clk 0:02:06.8]} 16... Rxc8 {[%clk 0:02:12]}
17. O-O-O {[%clk 0:02:00.7]} 17... O-O {[%clk 0:02:10.3]} 18. Kb1 {[%clk
0:02:00]} 18... Qa7 {[%clk 0:02:04.3]} 19. e5 {[%clk 0:01:23.2]} 19... Nxe5
{[%clk 0:01:50.8]} 20. Nxe5 {[%clk 0:01:07.4]} 20... dxe5 {[%clk 0:01:49.5]} 21.
g4 {[%clk 0:01:07.5]} 21... a5 {[%clk 0:01:39]} 22. Qe4 {[%clk 0:00:47.7]} 22...
a4 {[%clk 0:01:35.8]} 23. Ba2 {[%clk 0:00:48.1]} 23... Qa8 {[%clk 0:01:23.4]}
24. Rde1 {[%clk 0:00:44.1]} 24... Qxe4 {[%clk 0:01:22.1]} 25. Rxe4 {[%clk
0:00:45]} 25... Rc5 {[%clk 0:01:21.4]} 26. f3 {[%clk 0:00:40.6]} 26... Rfc8
{[%clk 0:01:21]} 27. Re2 {[%clk 0:00:40.3]} 27... Kf8 {[%clk 0:01:21]} 28. Rd1
{[%clk 0:00:39.3]} 28... Ke7 {[%clk 0:01:20.5]} 29. Rd3 {[%clk 0:00:32.2]} 29...
Rd8 {[%clk 0:01:12.5]} 30. b4 {[%clk 0:00:24.7]} 30... Rc7 {[%clk 0:01:04.4]}
31. c3 {[%clk 0:00:20]} 31... Rxc3 {[%clk 0:01:00]} 32. Rxc3 {[%clk 0:00:20]}
32... dxc3 {[%clk 0:01:00.9]} 33. Kc2 {[%clk 0:00:20.9]} 33... e4 {[%clk
0:01:01.3]} 34. fxe4 {[%clk 0:00:20.7]} 34... Be5 {[%clk 0:01:01.3]} 35. Bb1
{[%clk 0:00:18.3]} 35... Rh8 {[%clk 0:00:44.1]} 36. Kd1 {[%clk 0:00:15.1]} 36...
h5 {[%clk 0:00:41.4]} 37. gxh5 {[%clk 0:00:14.7]} 37... Rxh5 {[%clk 0:00:42.3]}
38. Bd3 {[%clk 0:00:15.3]} 38... Rh1+ {[%clk 0:00:41.9]} 39. Re1 {[%clk
0:00:15.7]} 39... Rh2 {[%clk 0:00:38.6]} 40. Re2 {[%clk 0:00:15.5]} 40... g4
{[%clk 0:00:18.7]} 41. Bxb5 {[%clk 0:00:15.6]} 41... Rh1+ {[%clk 0:00:19.2]} 42.
Kc2 {[%clk 0:00:16.2]} 42... Ra1 {[%clk 0:00:19.7]} 43. Bxa4 {[%clk 0:00:16.8]}
43... Ra2+ {[%clk 0:00:18.6]} 44. Kd3 {[%clk 0:00:17.1]} 44... Rxa3 {[%clk
0:00:19.1]} 45. Bc2 {[%clk 0:00:17.5]} 45... Ra7 {[%clk 0:00:18.8]} 46. Kc4
{[%clk 0:00:13.8]} 46... Rc7+ {[%clk 0:00:18.9]} 47. Kb3 {[%clk 0:00:14.1]}
47... Kf6 {[%clk 0:00:17.4]} 48. Rf2+ {[%clk 0:00:13.6]} 48... Kg5 {[%clk
0:00:17.3]} 49. b5 {[%clk 0:00:14]} 49... Rb7 {[%clk 0:00:14.6]} 50. Kc4 {[%clk
0:00:13.5]} 50... Rc7+ {[%clk 0:00:14.2]} 51. Kb4 {[%clk 0:00:13.3]} 51... Bd4
{[%clk 0:00:12.7]} 52. Rf1 {[%clk 0:00:10.6]} 52... f6 {[%clk 0:00:12.1]} 53.
Kb3 {[%clk 0:00:04.2]} 53... Rb7 {[%clk 0:00:09.6]} 54. Kc4 {[%clk 0:00:03.9]}
54... e5 {[%clk 0:00:09.3]} 55. g3 {[%clk 0:00:03.3]} 55... Rc7+ {[%clk
0:00:08.6]} 56. Kd3 {[%clk 0:00:02.9]} 56... Rb7 {[%clk 0:00:08.4]} 57. Kc4
{[%clk 0:00:03.3]} 57... Ra7 {[%clk 0:00:08.2]} 58. Kb3 {[%clk 0:00:03]} 58...
Ra5 {[%clk 0:00:07.9]} 59. Bd3 {[%clk 0:00:03.3]} 59... Ra7 {[%clk 0:00:06.7]}
60. Rf5+ {[%clk 0:00:03.4]} 60... Kg6 {[%clk 0:00:07.2]} 61. Rf1 {[%clk
0:00:03.6]} 61... Ra5 {[%clk 0:00:06.5]} 62. Rb1 {[%clk 0:00:03.6]} 62... Ra7
{[%clk 0:00:06.3]} 63. Kc4 {[%clk 0:00:03.7]} 63... Ra2 {[%clk 0:00:05.4]} 64.
Rc1 {[%clk 0:00:02.4]} 64... Rg2 {[%clk 0:00:05.4]} 65. Rc2 {[%clk 0:00:01.4]}
65... Rxg3 {[%clk 0:00:05.2]} 66. Be2 {[%clk 0:00:01.6]} 66... Rg2 {[%clk
0:00:05.3]} 67. Kd3 {[%clk 0:00:01.4]} 67... Rg3+ {[%clk 0:00:05.2]} 68. Kc4
{[%clk 0:00:01.7]} 68... Kg5 {[%clk 0:00:05.8]} 69. Kd5 {[%clk 0:00:01.4]} 69...
Re3 {[%clk 0:00:05.6]} 70. Ke6 {[%clk 0:00:01.1]} 70... g3 {[%clk 0:00:05.7]}
71. Bf1 {[%clk 0:00:01.2]} 71... Rxe4 {[%clk 0:00:05.6]} 72. Bg2 {[%clk
0:00:02.1]} 72... Rf4 {[%clk 0:00:05.4]} 73. Kd5 {[%clk 0:00:02.4]} 73... Rf2
{[%clk 0:00:05.7]} 74. Rxf2 {[%clk 0:00:02.7]} 74... gxf2 {[%clk 0:00:06.6]} 75.
Ke4 {[%clk 0:00:03.2]} 75... Kg4 {[%clk 0:00:06.6]} 76. Kd3 {[%clk 0:00:03]}
76... Kg3 {[%clk 0:00:07.1]} 77. Bf1 {[%clk 0:00:03.9]} 77... Kh2 {[%clk
0:00:07.3]} 78. Be2 {[%clk 0:00:04.5]} 78... Kg1 {[%clk 0:00:07.7]} 0-1